fUST/lending_fUST_20260417
["ID","MTS","AMOUNT","RATE_DAILY","PERIOD"]
[420633239,1776382239859,-237.80837752,8.219e-05,2]
[420633240,1776382239868,-476.80721049,8.219e-05,2]
[420633241,1776382239878,-546.17174104,8.219e-05,2]
[420633242,1776382239887,-320.70032505,8.219e-05,2]
[420633243,1776382239896,-500.0,8.219e-05,2]
[420633244,1776382239906,-546.4,8.219e-05,2]
[420633245,1776382239915,-500.0,8.219e-05,2]
[420633246,1776382239924,-500.0,8.219e-05,2]
[420633247,1776382239934,-551.18,8.219e-05,2]
[420633248,1776382239943,-500.0,8.219e-05,2]
[420633249,1776382240136,-402.30544319,8.219e-05,2]
[420633250,1776382240147,-500.0,8.219e-05,2]
[420633251,1776382240156,-317.65188641,8.219e-05,2]
[420633252,1776382240166,-500.0,8.219e-05,2]
[420633253,1776382240175,-206.88,8.219e-05,2]
[420633254,1776382240184,-713.06,8.219e-05,2]
[420633255,1776382240193,-500.0,8.219e-05,2]
[420633256,1776382240203,-500.0,8.219e-05,2]
[420633257,1776382240212,-1595.33,8.219e-05,2]
[420633258,1776382240222,-500.0,8.219e-05,2]
[420633259,1776382240232,-281.99992311,8.219e-05,2]
[420633260,1776382240242,-500.0,8.219e-05,2]
[420633261,1776382240253,-218.1037122,8.219e-05,2]
[420633262,1776382240262,-646.11,8.219e-05,2]
[420633263,1776382240271,-500.0,8.219e-05,2]
[420633264,1776382240281,-1458.95,8.219e-05,2]
[420633265,1776382240290,-201.3240981,8.219e-05,2]
[420633266,1776382240299,-500.0,8.219e-05,2]
[420633267,1776382240308,-437.28067528,8.219e-05,2]
[420633268,1776382240318,-500.0,8.219e-05,2]
[420633269,1776382240328,-527.24863069,8.219e-05,2]
[420633270,1776382240337,-500.0,8.219e-05,2]
[420633271,1776382240346,-322.69000188,8.219e-05,2]
[420633272,1776382240355,-262.56563207,8.219e-05,2]
[420633273,1776382240364,-500.0,8.219e-05,2]
[420633274,1776382240373,-2119.32,8.219e-05,2]
[420633275,1776382240383,-210.33287192,8.219e-05,2]
[420633276,1776382240392,-500.0,8.219e-05,2]
[420633277,1776382240401,-500.0,8.219e-05,2]
[420633278,1776382240411,-707.24,8.219e-05,2]
[420633280,1776382240420,-500.0,8.219e-05,2]
[420633281,1776382240429,-500.0,8.219e-05,2]
[420633282,1776382240439,-500.0,8.219e-05,2]
[420633283,1776382240448,-226.85885712,8.219e-05,2]
[420633285,1776382240457,-500.0,8.219e-05,2]
[420633286,1776382240466,-500.0,8.219e-05,2]
[420633287,1776382240475,-500.0,8.219e-05,2]
[420633288,1776382240485,-500.0,8.219e-05,2]
[420633289,1776382240494,-500.0,8.219e-05,2]
[420633290,1776382240504,-500.0,8.219e-05,2]
[420633291,1776382240513,-500.0,8.219e-05,2]
[420633292,1776382240523,-500.0,8.219e-05,2]
[420633293,1776382240532,-500.0,8.219e-05,2]
[420633294,1776382240543,-302.48503502,8.219e-05,2]
[420633295,1776382240552,-852.0,8.219e-05,2]
[420633297,1776382240562,-387.15638958,8.219e-05,2]
[420633298,1776382240571,-1420.86,8.219e-05,2]
[420633299,1776382240580,-162.91103972,8.219e-05,2]
[420633300,1776382240590,-300.88045498,8.219e-05,2]
[420633301,1776382240599,-406.00285538,8.219e-05,2]
[420633302,1776382240609,-546.67,8.219e-05,2]
[420633304,1776382240618,-240.63246166,8.219e-05,2]
[420633305,1776382240627,-500.0,8.219e-05,2]
[420633306,1776382240636,-254.22244373,8.219e-05,2]
[420633307,1776382240645,-500.0,8.219e-05,2]
[420633308,1776382240656,-1270.83,8.219e-05,2]
[420633309,1776382240665,-500.0,8.219e-05,2]
[420633311,1776382240675,-845.35,8.219e-05,2]
[420633312,1776382240685,-500.0,8.219e-05,2]
[420633313,1776382240694,-1615.94,8.219e-05,2]
[420633314,1776382240704,-661.15,8.219e-05,2]
[420633315,1776382240714,-500.0,8.219e-05,2]
[420633316,1776382240723,-313.54623671,8.219e-05,2]
[420633318,1776382240732,-902.95,8.219e-05,2]
[420633320,1776382240743,-272.68608158,8.219e-05,2]
[420633321,1776382240754,-500.0,8.219e-05,2]
[420633322,1776382240763,-424.31487212,8.219e-05,2]
[420633323,1776382240772,-512.39,8.219e-05,2]
[420633324,1776382240782,-500.0,8.219e-05,2]
[420633325,1776382240791,-500.0,8.219e-05,2]
[420633326,1776382240801,-305.41469893,8.219e-05,2]
[420633327,1776382240811,-2163.54,8.219e-05,2]
[420633328,1776382240822,-5876.5,8.219e-05,2]
[420633329,1776382240834,-260.61,8.219e-05,2]
[420633330,1776382240844,-1200.92,8.219e-05,2]
[420633331,1776382240854,-814.06,8.219e-05,2]
[420633332,1776382240863,-500.0,8.219e-05,2]
[420633333,1776382240872,-500.0,8.219e-05,2]
[420633334,1776382240882,-1677.19,8.219e-05,2]
[420633335,1776382240892,-1431.09,8.219e-05,2]
[420633336,1776382240901,-500.0,8.219e-05,2]
[420633337,1776382240910,-604.83,8.219e-05,2]
[420633338,1776382240919,-500.0,8.219e-05,2]
[420633339,1776382240929,-748.02,8.219e-05,2]
[420633340,1776382240939,-500.0,8.219e-05,2]
[420633341,1776382240948,-500.0,8.219e-05,2]
[420633342,1776382240958,-230.4,8.219e-05,2]
[420633343,1776382240968,-5383.49,8.219e-05,2]
[420633344,1776382240978,-500.0,8.219e-05,2]
[420633345,1776382240988,-780.59,8.219e-05,2]
[420633346,1776382240999,-500.0,8.219e-05,2]
[420633347,1776382241008,-337.24455466,8.219e-05,2]
[420633348,1776382241017,-500.0,8.219e-05,2]
[420633349,1776382241027,-264.67329011,8.219e-05,2]
[420633350,1776382241036,-500.0,8.219e-05,2]
[420633351,1776382241045,-5062.72,8.219e-05,2]
[420633352,1776382241054,-314.62836919,8.219e-05,2]
[420633353,1776382241063,-1221.3,8.219e-05,2]
[420633354,1776382241072,-2521.14,8.219e-05,2]
[420633355,1776382241082,-500.0,8.219e-05,2]
[420633356,1776382241091,-3337.49,8.219e-05,2]
[420633357,1776382241102,-894.45,8.219e-05,2]
[420633358,1776382241114,-2814.22,8.219e-05,2]
[420633359,1776382241123,-1336.02,8.219e-05,2]
[420633360,1776382241132,-2617.29,8.219e-05,2]
[420633361,1776382241143,-314.89087667,8.219e-05,2]
[420633362,1776382241152,-500.0,8.219e-05,2]
[420633363,1776382241162,-500.0,8.219e-05,2]
[420633364,1776382241174,-509.13758811,8.219e-05,2]
[420633365,1776382241183,-500.0,8.219e-05,2]
[420633366,1776382241193,-500.0,8.219e-05,2]
[420633367,1776382241204,-500.0,8.219e-05,2]
[420633368,1776382241216,-500.0,8.219e-05,2]
[420633369,1776382241226,-176.36540794,8.219e-05,2]
[420633370,1776382241237,-1438.87,8.219e-05,2]
[420633371,1776382241247,-715.95,8.219e-05,2]
[420633372,1776382241259,-1996.49,8.219e-05,2]
[420633373,1776382241271,-3118.95,8.219e-05,2]
[420633374,1776382241280,-500.0,8.219e-05,2]
[420633375,1776382241289,-500.0,8.219e-05,2]
[420633376,1776382241300,-438.09892112,8.219e-05,2]
[420633377,1776382241311,-315.7782914,8.219e-05,2]
[420633378,1776382241321,-500.0,8.219e-05,2]
[420633379,1776382241331,-500.0,8.219e-05,2]
[420633380,1776382241341,-1053.53,8.219e-05,2]
[420633381,1776382241351,-916.5,8.219e-05,2]
[420633382,1776382241362,-617.78,8.219e-05,2]
[420633383,1776382241371,-500.0,8.219e-05,2]
[420633384,1776382241380,-4069.8,8.219e-05,2]
[420633385,1776382241390,-1459.37,8.219e-05,2]
[420633386,1776382241400,-500.0,8.219e-05,2]
[420633387,1776382241409,-500.0,8.219e-05,2]
[420633388,1776382241419,-2649.15,8.219e-05,2]
[420633389,1776382241429,-5684.17,8.219e-05,2]
[420633390,1776382241439,-411.66531058,8.219e-05,2]
[420633391,1776382241449,-500.0,8.219e-05,2]
[420633392,1776382241458,-202.67696162,8.219e-05,2]
[420633393,1776382241468,-500.0,8.219e-05,2]
[420633394,1776382241477,-272.25456042,8.219e-05,2]
[420633395,1776382241486,-500.0,8.219e-05,2]
[420633396,1776382241496,-3030.81,8.219e-05,2]
[420633397,1776382241506,-517.05,8.219e-05,2]
[420633398,1776382241515,-430.87105275,8.219e-05,2]
[420633399,1776382241525,-4841.63,8.219e-05,2]
[420633400,1776382241535,-500.0,8.219e-05,2]
[420633401,1776382241545,-562.43,8.219e-05,2]
[420633402,1776382241554,-500.0,8.219e-05,2]
[420633403,1776382241563,-924.57,8.219e-05,2]
[420633404,1776382241573,-1914.8,8.219e-05,2]
[420633405,1776382241583,-19595.85,8.219e-05,2]
[420633406,1776382241593,-500.0,8.219e-05,2]
[420633407,1776382241602,-2426.06,8.219e-05,2]
[420633408,1776382241612,-2434.48,8.219e-05,2]
[420633409,1776382241621,-1885.22,8.219e-05,2]
[420633410,1776382241631,-342.79576587,8.219e-05,2]
[420633411,1776382241640,-535.59,8.219e-05,2]
[420633412,1776382241651,-431.72712065,8.219e-05,2]
[420633413,1776382241660,-600.77,8.219e-05,2]
[420633414,1776382241670,-4090.11,8.219e-05,2]
[420633415,1776382241680,-10912.3,8.219e-05,2]
[420633416,1776382241690,-500.0,8.219e-05,2]
[420633417,1776382241703,-275.9887587,8.219e-05,2]
[420633418,1776382241712,-500.0,8.219e-05,2]
[420633419,1776382241723,-670.84,8.219e-05,2]
[420633420,1776382241732,-267.57127046,8.219e-05,2]
[420633421,1776382241742,-1177.64,8.219e-05,2]
[420633422,1776382241752,-577.41937466,8.219e-05,2]
[420633423,1776382241761,-1592.52,8.219e-05,2]
[420633424,1776382241771,-1215.05,8.219e-05,2]
[420633425,1776382241781,-6282.39,8.219e-05,2]
[420633426,1776382241790,-408.34696976,8.219e-05,2]
[420633427,1776382241800,-1998.96,8.219e-05,2]
[420633428,1776382241809,-533.96012968,8.219e-05,2]
[420633429,1776382241819,-273.45511169,8.219e-05,2]
[420633430,1776382241831,-693.65,8.219e-05,2]
[420633431,1776382241842,-525.54,8.219e-05,2]
[420633432,1776382241852,-251.02880627,8.219e-05,2]
[420633433,1776382241862,-225.79223633,8.219e-05,2]
[420633434,1776382241871,-500.0,8.219e-05,2]
[420633435,1776382241880,-1161.05,8.219e-05,2]
[420633436,1776382241891,-500.0,8.219e-05,2]
[420633437,1776382241902,-5446.65,8.219e-05,2]
[420633438,1776382241911,-500.0,8.219e-05,2]
[420633439,1776382241923,-500.0,8.219e-05,2]
[420633440,1776382241933,-1681.64,8.219e-05,2]
[420633441,1776382241944,-500.0,8.219e-05,2]
[420633442,1776382241954,-1979.198041,8.219e-05,2]
[420633443,1776382241963,-4149.09174,8.219e-05,2]
[420633444,1776382241973,-220.11,8.276e-05,2]
[420633445,1776382241982,-1408.0,8.284e-05,2]
[420633446,1776382241990,-645.0,8.284e-05,2]
[420633447,1776382241999,-2208.0,8.284e-05,2]
[420633448,1776382242008,-739.0,8.284e-05,2]
[420633449,1776382242018,-184.0,8.284e-05,2]
[420633450,1776382242027,-441.0,8.284e-05,2]
[420633451,1776382242036,-506.13902181,8.423e-05,2]
[420633452,1776382242045,-500.0,8.423e-05,2]
[420633453,1776382242054,-500.14205822,8.423e-05,2]
[420633454,1776382242063,-256.55944207,8.423e-05,2]
[420633455,1776382242072,-158.27656276,8.423e-05,2]
[420633456,1776382242081,-501.49553267,8.423e-05,2]
[420633457,1776382242090,-500.0,8.423e-05,2]
[420633458,1776382242100,-500.0,8.423e-05,2]
[420633459,1776382242109,-500.0,8.423e-05,2]
[420633460,1776382242119,-501.43721353,8.423e-05,2]
[420633461,1776382242128,-500.8698544,8.423e-05,2]
[420633462,1776382242137,-1000.0,8.47e-05,2]
[420633463,1776382242146,-244.0,8.47e-05,2]
[420633464,1776382242155,-1375.9891,8.493e-05,2]
[420633465,1776382242164,-500.0,8.493e-05,2]
[420633466,1776382242174,-500.0,8.493e-05,2]
[420633467,1776382242183,-500.0,8.493e-05,2]
[420633468,1776382242192,-500.0,8.493e-05,2]
[420633469,1776382242202,-500.0,8.493e-05,2]
[420633470,1776382242212,-166.96555367,8.493e-05,2]
[420633471,1776382242221,-500.0,8.493e-05,2]
[420633472,1776382242230,-566.18,8.493e-05,2]
[420633473,1776382242238,-2512.59269,8.493e-05,2]
[420633474,1776382242248,-246.44,8.493e-05,2]
[420633475,1776382242256,-500.0,8.493e-05,2]
[420633476,1776382242265,-500.0,8.493e-05,2]
[420633477,1776382242275,-546.4,8.493e-05,2]
[420633478,1776382242284,-500.0,8.493e-05,2]
[420633479,1776382242293,-500.0,8.493e-05,2]
[420633480,1776382242303,-500.0,8.493e-05,2]
[420633481,1776382242312,-500.0,8.493e-05,2]
[420633482,1776382242321,-713.06,8.493e-05,2]
[420633483,1776382242330,-1595.33,8.493e-05,2]
[420633484,1776382242339,-502.5314475,8.493e-05,2]
[420633485,1776382242349,-500.0,8.493e-05,2]
[420633486,1776382242360,-646.11,8.493e-05,2]
[420633487,1776382242372,-500.0,8.493e-05,2]
[420633488,1776382242382,-1458.95,8.493e-05,2]
[420633489,1776382242391,-500.0,8.493e-05,2]
[420633490,1776382242400,-500.0,8.493e-05,2]
[420633491,1776382242410,-2119.32,8.493e-05,2]
[420633492,1776382242419,-500.0,8.493e-05,2]
[420633493,1776382242428,-707.24,8.493e-05,2]
[420633494,1776382242437,-500.0,8.493e-05,2]
[420633495,1776382242447,-500.0,8.493e-05,2]
[420633496,1776382242456,-500.0,8.493e-05,2]
[420633497,1776382242466,-500.0,8.493e-05,2]
[420633498,1776382242476,-500.0,8.493e-05,2]
[420633499,1776382242487,-500.0,8.493e-05,2]
[420633500,1776382242497,-852.0,8.493e-05,2]
[420633501,1776382242507,-1420.86,8.493e-05,2]
[420633502,1776382242516,-546.67,8.493e-05,2]
[420633503,1776382242527,-500.0,8.493e-05,2]
[420633504,1776382242536,-500.0,8.493e-05,2]
[420633505,1776382242546,-1270.83,8.493e-05,2]
[420633506,1776382242556,-845.35,8.493e-05,2]
[420633507,1776382242565,-1615.94,8.493e-05,2]
[420633508,1776382242574,-661.15,8.493e-05,2]
[420633509,1776382242584,-500.0,8.493e-05,2]
[420633510,1776382242594,-902.95,8.493e-05,2]
[420633511,1776382242603,-500.0,8.493e-05,2]
[420633512,1776382242613,-512.39,8.493e-05,2]
[420633513,1776382242623,-500.0,8.493e-05,2]
[420633514,1776382242632,-500.0,8.493e-05,2]
[420633515,1776382242642,-2163.54,8.493e-05,2]
[420633516,1776382242651,-5876.5,8.493e-05,2]
[420633517,1776382242661,-1200.92,8.493e-05,2]
[420633518,1776382242671,-814.06,8.493e-05,2]
[420633519,1776382242680,-500.0,8.493e-05,2]
[420633520,1776382242689,-500.0,8.493e-05,2]
[420633521,1776382242699,-1677.19,8.493e-05,2]
[420633522,1776382242708,-1431.09,8.493e-05,2]
[420633523,1776382242717,-649.15344912,8.493e-05,2]
[420633524,1776382242726,-604.83,8.493e-05,2]
[420633525,1776382242735,-500.0,8.493e-05,2]
[420633526,1776382242744,-748.02,8.493e-05,2]
[420633527,1776382242753,-500.0,8.493e-05,2]
[420633528,1776382242762,-5383.49,8.493e-05,2]
[420633529,1776382242771,-500.0,8.493e-05,2]
[420633530,1776382242781,-780.59,8.493e-05,2]
[420633531,1776382242790,-382.48090634,8.493e-05,2]
[420633532,1776382242799,-500.0,8.493e-05,2]
[420633533,1776382242808,-500.0,8.493e-05,2]
[420633534,1776382242818,-500.0,8.493e-05,2]
[420633535,1776382242827,-5062.72,8.493e-05,2]
[420633536,1776382242836,-1221.3,8.493e-05,2]
[420633537,1776382242844,-2521.14,8.493e-05,2]
[420633538,1776382242853,-500.0,8.493e-05,2]
[420633539,1776382242862,-3337.49,8.493e-05,2]
[420633540,1776382242871,-894.45,8.493e-05,2]
[420633541,1776382242881,-2814.22,8.493e-05,2]
[420633542,1776382242891,-1336.02,8.493e-05,2]
[420633543,1776382242900,-2617.29,8.493e-05,2]
[420633544,1776382242910,-500.0,8.493e-05,2]
[420633545,1776382242921,-500.0,8.493e-05,2]
[420633546,1776382242932,-500.0,8.493e-05,2]
[420633547,1776382242943,-500.0,8.493e-05,2]
[420633548,1776382242953,-339.43283925,8.493e-05,2]
[420633549,1776382242963,-500.0,8.493e-05,2]
[420633550,1776382242973,-1438.87,8.493e-05,2]
[420633551,1776382242985,-715.95,8.493e-05,2]
[420633552,1776382243005,-1996.49,8.493e-05,2]
[420633553,1776382243015,-3118.95,8.493e-05,2]
[420633555,1776382243025,-500.0,8.493e-05,2]
[420633557,1776382243034,-500.0,8.493e-05,2]
[420633558,1776382243044,-500.0,8.493e-05,2]
[420633559,1776382243055,-500.0,8.493e-05,2]
[420633560,1776382243064,-1053.53,8.493e-05,2]
[420633562,1776382243074,-916.5,8.493e-05,2]
[420633563,1776382243084,-617.78,8.493e-05,2]
[420633564,1776382243094,-300.7962711,8.493e-05,2]
[420633565,1776382243118,-3769.0037289,8.493e-05,2]
[420633567,1776382243127,-1459.37,8.493e-05,2]
[420633569,1776382243136,-500.0,8.493e-05,2]
[420633571,1776382243146,-500.0,8.493e-05,2]
[420633573,1776382243156,-2649.15,8.493e-05,2]
[420633575,1776382243165,-5684.17,8.493e-05,2]
[420633577,1776382243174,-433.28,8.493e-05,2]
[420633579,1776382243183,-500.0,8.493e-05,2]
[420633580,1776382243193,-261.96278307,8.493e-05,2]
[420633581,1776382243202,-3030.81,8.493e-05,2]
[420633583,1776382243213,-356.03070049,8.493e-05,2]
[420633584,1776382243414,-161.01929951,8.493e-05,2]
[420633585,1776382243425,-4841.63,8.493e-05,2]
[420633586,1776382243435,-136.25573218,8.493e-05,2]
[420633591,1776382243658,-363.74426782,8.493e-05,2]
[420633592,1776382243668,-562.43,8.493e-05,2]
[420633593,1776382243678,-500.0,8.493e-05,2]
[420633594,1776382243689,-924.57,8.493e-05,2]
[420633595,1776382243699,-334.66068193,8.493e-05,2]
[420633596,1776382244019,-1580.13931807,8.493e-05,2]
[420633597,1776382244030,-7760.93611216,8.493e-05,2]
[420633598,1776382244042,-2527.34187043,8.493e-05,2]
[420633604,1776382246779,-1311.84,8.219e-05,2]
[420633605,1776382246788,-9307.57201741,8.493e-05,2]
[420633606,1776382246798,-500.0,8.493e-05,2]
[420633607,1776382246808,-2426.06,8.493e-05,2]
[420633608,1776382246818,-2434.48,8.493e-05,2]
[420633609,1776382246827,-1885.22,8.493e-05,2]
[420633610,1776382246836,-535.59,8.493e-05,2]
[420633611,1776382246850,-600.77,8.493e-05,2]
[420633612,1776382246860,-4090.11,8.493e-05,2]
[420633613,1776382246870,-10912.3,8.493e-05,2]
[420633614,1776382246879,-284.17867614,8.493e-05,2]
[420633615,1776382246889,-296.58567619,8.493e-05,2]
[420633616,1776382246899,-670.84,8.493e-05,2]
[420633617,1776382246908,-1177.64,8.493e-05,2]
[420633618,1776382246918,-1592.52,8.493e-05,2]
[420633619,1776382246928,-1215.05,8.493e-05,2]
[420633620,1776382246938,-6282.39,8.493e-05,2]
[420633621,1776382246947,-1998.96,8.493e-05,2]
[420633622,1776382246957,-693.65,8.493e-05,2]
[420633623,1776382246966,-525.54,8.493e-05,2]
[420633624,1776382246976,-500.0,8.493e-05,2]
[420633625,1776382246986,-1161.05,8.493e-05,2]
[420633626,1776382246997,-500.0,8.493e-05,2]
[420633627,1776382247006,-5446.65,8.493e-05,2]
[420633628,1776382247015,-500.0,8.493e-05,2]
[420633629,1776382247025,-415.7114229,8.493e-05,2]
[420633630,1776382247035,-1681.64,8.493e-05,2]
[420633631,1776382247044,-1311.84,8.493e-05,2]
[420633632,1776382247054,-500.0,8.493e-05,2]
[420633633,1776382247063,-5102.56737471,8.538e-05,2]
[420633634,1776382247073,-664.15071556,8.589e-05,2]
[420633635,1776382247083,-2653.94625939,8.589e-05,2]
[420633636,1776382247093,-664.69280289,8.589e-05,2]
[420633637,1776382247103,-2656.11244036,8.589e-05,2]
[420633638,1776382247112,-295.26445411,8.612e-05,2]
[420633639,1776382247122,-683.81981358,8.636e-05,2]
[420633640,1776382247131,-2230.315306,8.636e-05,2]
[420633641,1776382247141,-500.0,8.654e-05,2]
[420633642,1776382247151,-500.0,8.654e-05,2]
[420633643,1776382247160,-500.0,8.654e-05,2]
[420633644,1776382247170,-500.0,8.654e-05,2]
[420633645,1776382247179,-500.0,8.654e-05,2]
[420633646,1776382247189,-500.0,8.654e-05,2]
[420633647,1776382247199,-500.0,8.661e-05,2]
[420633648,1776382247208,-454.4823354,8.733e-05,2]
[420633649,1776382247217,-532.279,8.762e-05,2]
[420633650,1776382247227,-387.45702874,8.767e-05,2]
[420633651,1776382247303,-988.53207126,8.767e-05,2]
[420633652,1776382247313,-500.0,8.767e-05,2]
[420633653,1776382247322,-500.0,8.767e-05,2]
[420633654,1776382247332,-500.0,8.767e-05,2]
[420633655,1776382247341,-500.0,8.767e-05,2]
[420633656,1776382247352,-500.0,8.767e-05,2]
[420633657,1776382247361,-500.0,8.767e-05,2]
[420633658,1776382247371,-566.18,8.767e-05,2]
[420633659,1776382247381,-2512.59269,8.767e-05,2]
[420633660,1776382247391,-500.0,8.767e-05,2]
[420633661,1776382247400,-264.80798877,8.767e-05,2]
[420633662,1776382338490,980.0,0.00024649,120]
[420633663,1776382347017,2385.0,0.00024658,120]
[420633664,1776382647986,4173.519,0.00024658,120]
[420633666,1776383037842,1000.0,0.00024658,120]
[420633668,1776383181014,330.42,0.00024657,120]
[420633732,1776383438173,-513.0,6.568e-05,2]
[420633733,1776383438183,-300.4284627,6.575e-05,2]
[420633734,1776383438192,-342.58983709,6.621e-05,2]
[420633735,1776383438225,-4233.86104822,6.621e-05,2]
[420633736,1776383438235,-600.0,6.699e-05,2]
[420633737,1776383438244,-1200.0,6.719e-05,2]
[420633738,1776383438254,-300.0,6.72e-05,2]
[420633739,1776383438264,-300.0,6.72e-05,2]
[420633740,1776383438274,-300.0,6.72e-05,2]
[420633741,1776383438283,-8706.63320986,6.721e-05,2]
[420633742,1776383438293,-300.0,6.854e-05,2]
[420633743,1776383438302,-300.0,6.854e-05,2]
[420633744,1776383438312,-300.0,6.854e-05,2]
[420633745,1776383438321,-7251.6007096,7e-05,2]
[420633746,1776383438332,-555.53628,7.092e-05,2]
[420633747,1776383438345,-720.0,7.369e-05,2]
[420633748,1776383438355,-13313.0324803,7.39e-05,2]
[420633749,1776383438365,-555.53628,7.39e-05,2]
[420633750,1776383438375,-555.53628,7.689e-05,2]
[420633751,1776383438384,-455.6611417,7.725e-05,2]
[420633752,1776383438394,-555.53628,7.988e-05,2]
[420633753,1776383438403,-633.4209351,8.018e-05,2]
[420633754,1776383438412,-500.0,8.018e-05,2]
[420633756,1776383438421,-492.65014836,8.018e-05,2]
[420633758,1776383438430,-500.0,8.018e-05,2]
[420633760,1776383438440,-625.30840102,8.018e-05,2]
[420633763,1776383438450,-50661.74366738,8.019e-05,2]
[420633764,1776383438459,-160.0,8.089e-05,2]
[420633766,1776383438470,-864.0,8.106e-05,2]
[420633767,1776383438479,-500.0,8.118e-05,2]
[420633768,1776383438488,-500.0,8.118e-05,2]
[420633770,1776383438497,-500.0,8.118e-05,2]
[420633772,1776383438507,-500.0,8.118e-05,2]
[420633774,1776383438517,-648.04214661,8.118e-05,2]
[420633776,1776383438529,-500.0,8.118e-05,2]
[420633778,1776383438540,-500.0,8.118e-05,2]
[420633781,1776383438551,-500.0,8.118e-05,2]
[420633783,1776383438560,-500.0,8.118e-05,2]
[420633785,1776383438569,-500.0,8.118e-05,2]
[420633787,1776383438579,-500.0,8.118e-05,2]
[420633789,1776383438588,-400.0,8.118e-05,2]
[420633791,1776383438598,-120887.31117658,8.119e-05,2]
[420633794,1776383438661,-16325.69923307,8.119e-05,2]
[420633795,1776383438672,-8510.47459472,8.119e-05,2]
[420633825,1776383440327,-1040.11788978,8.119e-05,2]
[420633856,1776383443149,-2642.72105866,6.502e-05,2]
[420633857,1776383443159,-9930.89521159,8.119e-05,2]
[420633858,1776383443171,-2884.85996915,8.119e-05,2]
[420633859,1776383443184,-2700.0000006,8.119e-05,2]
[420633860,1776383443197,-1576.29047317,8.119e-05,2]
[420633866,1776383446021,-360.69996,8.119e-05,2]
[420633872,1776383661771,1009.65847278,0.00024658,120]
[420633875,1776383716444,1000.0,0.00024658,120]
[420633882,1776384029934,200.20267,3.003e-05,2]
[420633884,1776384083211,2000.0,0.00024658,120]
[420633885,1776384091095,200.0,0.00016815,120]
[420633887,1776384150744,200.0,0.00021037,120]
[420633892,1776384331833,200.0,0.00021308,120]
[420633895,1776384450821,200.0,0.000236,120]
[420633898,1776384494411,5000.0,0.00024658,120]
[420633952,1776384632095,-1580.26245559,6.56e-05,2]
[420633958,1776384632151,-5.34376078,6.56e-05,2]
[420633959,1776384632160,-5000.0,6.626e-05,2]
[420633960,1776384632169,-515.0,6.693e-05,2]
[420633961,1776384632179,-297.80707393,6.727e-05,2]
[420633962,1776384632188,-1836.14146535,6.829e-05,2]
[420634009,1776384638411,-428.47,6.829e-05,2]
[420634017,1776384638575,-1533.0,6.829e-05,2]
[420634018,1776384638587,-4467.74005915,6.829e-05,2]
[420634019,1776384638596,-9942.46571394,7.6e-05,2]
[420634020,1776384638605,-6238.86664889,7.763e-05,2]
[420634021,1776384638614,-645.0,7.763e-05,2]
[420634022,1776384638623,-1408.0,7.763e-05,2]
[420634023,1776384638633,-2208.0,7.763e-05,2]
[420634024,1776384638642,-441.0,7.763e-05,2]
[420634025,1776384638651,-739.0,7.763e-05,2]
[420634026,1776384638660,-184.0,7.763e-05,2]
[420634027,1776384638670,-500.0,7.818e-05,2]
[420634028,1776384638679,-500.0,7.818e-05,2]
[420634029,1776384638688,-500.0,7.818e-05,2]
[420634030,1776384638698,-500.0,7.818e-05,2]
[420634031,1776384638707,-500.0,7.818e-05,2]
[420634032,1776384638716,-500.0,7.818e-05,2]
[420634033,1776384638725,-500.0,7.818e-05,2]
[420634034,1776384638734,-618.51630158,7.818e-05,2]
[420634035,1776384638744,-500.0,7.818e-05,2]
[420634036,1776384638755,-500.0,7.818e-05,2]
[420634037,1776384638764,-500.0,7.818e-05,2]
[420634038,1776384638773,-500.0,7.818e-05,2]
[420634039,1776384638782,-370.42159947,7.818e-05,2]
[420634040,1776384638792,-500.0,7.818e-05,2]
[420634041,1776384638801,-600.0,7.818e-05,2]
[420634042,1776384638812,-11635.97534299,7.819e-05,2]
[420634071,1776384643295,-642.99355765,7.819e-05,2]
[420634072,1776384643307,-587.80325138,7.819e-05,2]
[420634073,1776384643404,-124083.77758493,7.819e-05,2]
[420634074,1776384643415,-23739.77640519,7.819e-05,2]
[420634075,1776384643425,-9318.2065349,7.918e-05,2]
[420634076,1776384643434,-10908.3923245,7.919e-05,2]